bitfinex/quotes_BTCUSD_20220226
["timestamp","ask_amount","ask_price","bid_price","bid_amount"]
[1645917442745,0.063935,39126.0,39117.0,0.42291599]
[1645917442949,0.063935,39126.0,39117.0,0.42324857]
[1645917443145,0.063935,39126.0,39117.0,0.12324857]
[1645917443747,0.063935,39126.0,39117.0,0.18718347]
[1645917443945,0.063935,39126.0,39117.0,0.18685089]
[1645917444151,0.063935,39126.0,39117.0,0.18718347]
[1645917444546,0.063935,39126.0,39117.0,0.25111947]
[1645917444748,0.063935,39126.0,39117.0,0.18718347]
[1645917444999,0.063935,39126.0,39118.0,0.3]
[1645917445198,0.063935,39126.0,39118.0,0.36393409]
[1645917445396,0.063935,39126.0,39118.0,0.3]
[1645917445597,0.063935,39126.0,39117.0,0.12324857]
[1645917445997,0.063935,39126.0,39118.0,0.3]
[1645917446198,0.063935,39126.0,39117.0,0.12324857]
[1645917446398,0.063935,39126.0,39117.0,0.18685299]
[1645917446399,0.127874,39126.0,39117.0,0.18685299]
[1645917446599,0.063935,39126.0,39117.0,0.42324149]
[1645917446799,0.063935,39126.0,39117.0,0.12324149]
[1645917447400,2.73115015,39120.0,39117.0,0.12324149]
[1645917447604,2.73115015,39120.0,39117.0,0.12291599]
[1645917447803,0.063937,39127.0,39117.0,0.12324149]
[1645917448002,0.063937,39127.0,39118.0,0.3]
[1645917448502,1.265549,39128.0,39118.0,0.363934]
[1645917448746,0.1191,39131.0,39119.0,0.378718]
[1645917448944,0.3062,39136.0,39120.0,0.3513]
[1645917449142,0.47903542,39136.0,39121.0,0.378718]
[1645917449341,0.47903542,39136.0,39123.0,0.378718]
[1645917449540,0.29433542,39136.0,39126.0,0.06391435]
[1645917449740,0.29433542,39136.0,39126.0,0.36391435]
[1645917449741,0.185417,39136.0,39126.0,0.36391435]
[1645917449942,0.063917,39136.0,39126.0,0.36391435]
[1645917450843,0.063917,39136.0,39129.0,0.063917]
[1645917451042,0.063917,39136.0,39130.0,0.06391588]
[1645917451441,0.063917,39136.0,39127.0,0.0513]
[1645917452496,0.063917,39136.0,39128.0,0.06392]
[1645917452695,0.063917,39136.0,39128.0,0.12784017]
[1645917452897,0.058917,39136.0,39127.0,0.0513]
[1645917453793,0.063929,39132.0,39127.0,0.0513]
[1645917453992,0.1917868,39132.0,39127.0,0.0513]
[1645917454192,0.063929,39132.0,39127.0,0.0513]
[1645917454992,0.063932,39130.0,39122.0,0.3533]
[1645917455192,0.063932,39130.0,39122.0,0.0533]
[1645917455392,0.063932,39130.0,39122.0,0.3513]
[1645917456092,0.063932,39130.0,39122.0,0.41523]
[1645917456547,0.063932,39130.0,39122.0,0.3513]
[1645917457447,0.127864,39130.0,39122.0,0.41523]
[1645917457647,0.063932,39130.0,39122.0,0.41523]
[1645917458250,0.063932,39130.0,39122.0,0.47916]
[1645917458447,0.063932,39130.0,39123.0,0.12785394]
[1645917458851,0.063932,39130.0,39120.0,0.4216]
[1645917459051,0.063932,39130.0,39120.0,0.1216]
[1645917459849,0.063934,39129.0,39120.0,0.1216]
[1645917460095,0.127874,39128.0,39120.0,0.1216]
[1645917460296,0.25574015,39129.0,39128.0,0.31968499]
[1645917467246,0.25566179,39129.0,39128.0,0.31968499]
[1645917467894,0.25566179,39129.0,39128.0,0.31974499]
[1645917470501,0.12779464,39129.0,39128.0,0.31974499]
[1645917473546,0.12779464,39129.0,39128.0,0.31968499]
[1645917473955,0.255721,39135.0,39128.0,0.31968499]
[1645917473956,0.0105358,39138.0,39128.0,0.31968499]
[1645917474151,0.23675188,39136.0,39128.0,0.31968499]
[1645917474449,0.17283388,39136.0,39128.0,0.31968499]
[1645917474647,0.17283388,39136.0,39128.0,0.61968499]
[1645917474995,0.17283388,39136.0,39129.0,0.063915]
[1645917475196,0.17283388,39136.0,39130.0,0.063917]
[1645917475396,0.17283388,39136.0,39131.0,0.06391428]
[1645917475998,0.00032609,39138.0,39131.0,0.12782928]
[1645917476199,0.00032609,39138.0,39131.0,0.363915]
[1645917476394,0.06424009,39138.0,39131.0,0.363915]
[1645917476597,0.063914,39138.0,39131.0,0.363915]
[1645917476795,0.0642401,39138.0,39131.0,0.363915]
[1645917477394,0.0642401,39138.0,39132.0,0.063915]
[1645917477794,0.063914,39138.0,39132.0,0.12783]
[1645917477994,0.0642401,39138.0,39132.0,0.12783]
[1645917478841,0.063914,39138.0,39132.0,0.12783]
[1645917479345,0.0642461,39138.0,39132.0,0.12783]
[1645917480241,0.063914,39138.0,39132.0,0.12783]
[1645917480440,0.0642461,39138.0,39132.0,0.12783]
[1645917480846,0.0642461,39138.0,39133.0,0.063914]
[1645917481242,0.063914,39138.0,39133.0,0.063914]
[1645917481642,0.0642461,39138.0,39133.0,0.063914]
[1645917482043,0.0642461,39138.0,39134.0,0.063914]
[1645917482497,0.063914,39138.0,39134.0,0.063914]
[1645917482697,0.0642397,39138.0,39134.0,0.063914]
[1645917482903,0.0642397,39138.0,39132.0,0.063916]
[1645917483303,0.0642397,39138.0,39131.0,0.06391628]
[1645917483695,0.063914,39138.0,39131.0,0.06391628]
[1645917484107,0.06423969,39138.0,39131.0,0.06391628]
[1645917484500,0.06423969,39138.0,39131.0,0.12783328]
[1645917484698,0.06423969,39138.0,39131.0,0.06391628]
[1645917484897,0.063914,39138.0,39131.0,0.06391628]
[1645917485097,0.06423969,39138.0,39131.0,0.06391628]
[1645917485298,0.06423969,39138.0,39131.0,0.12783428]
[1645917485500,0.06423969,39138.0,39132.0,0.06391321]
[1645917485998,0.06423969,39138.0,39133.0,0.063914]
[1645917486261,0.00425737,39139.0,39133.0,0.063914]
[1645917486461,0.00032612,39138.0,39133.0,0.063914]
[1645917487259,0.00425737,39139.0,39133.0,0.063914]
[1645917487459,0.00425737,39139.0,39134.0,0.063914]
[1645917487658,0.00032613,39138.0,39134.0,0.063914]
[1645917487861,0.00032613,39138.0,39134.0,0.127827]
[1645917488560,0.00425737,39139.0,39134.0,0.127827]
[1645917488760,0.00032613,39138.0,39134.0,0.127827]
[1645917489666,0.00425737,39139.0,39135.0,0.063911]
[1645917489864,0.00012597,39138.0,39135.0,0.063911]
[1645917490795,0.00012597,39138.0,39136.0,0.06390724]
[1645917490996,0.00425737,39139.0,39136.0,0.19172624]
[1645917491198,0.00032638,39138.0,39137.0,0.3]
[1645917491399,0.23671176,39142.0,39137.0,0.3]
[1645917491400,0.17280276,39142.0,39139.0,0.00916749]
[1645917491597,0.00020016,39143.0,39139.0,0.00916749]
[1645917491598,0.00020016,39143.0,39140.0,0.0513]
[1645917491799,0.00020016,39143.0,39140.0,0.11520096]
[1645917491996,0.00020016,39143.0,39140.0,0.17910496]
[1645917492203,0.00020016,39143.0,39140.0,0.11520096]
[1645917492597,0.00020016,39143.0,39140.0,0.0513]
[1645917492798,0.00020016,39143.0,39140.0,0.115202]
[1645917493400,0.00020016,39143.0,39140.0,0.0513]
[1645917493598,0.0003261,39143.0,39140.0,0.0513]
[1645917494547,0.00020016,39143.0,39140.0,0.0513]
[1645917494849,0.0003261,39143.0,39140.0,0.0513]
[1645917495745,0.00020016,39143.0,39140.0,0.0513]
[1645917495949,0.00052704,39143.0,39140.0,0.0513]
[1645917496146,0.00052704,39143.0,39140.0,0.115204]
[1645917496946,0.00020016,39143.0,39140.0,0.115204]
[1645917497149,0.0005335,39143.0,39140.0,0.115204]
[1645917497596,0.0005335,39143.0,39140.0,0.24301012]
[1645917497597,0.0004549,39143.0,39140.0,0.24301012]
[1645917498098,0.0004549,39143.0,39140.0,0.0513]
[1645917498099,0.00012156,39143.0,39140.0,0.0513]
[1645917498296,0.0004549,39143.0,39140.0,0.0513]
[1645917499294,0.00012156,39143.0,39140.0,0.0513]
[1645917499495,0.0004549,39143.0,39140.0,0.0513]
[1645917499795,0.0004549,39143.0,39140.0,0.115204]
[1645917500598,0.00012156,39143.0,39140.0,0.063904]
[1645917500797,0.00044776,39143.0,39140.0,0.063904]
[1645917501450,0.00044776,39143.0,39140.0,0.127808]
[1645917501651,0.00012156,39143.0,39140.0,0.063904]
[1645917501852,0.00012156,39143.0,39141.0,0.063902]
[1645917502052,0.00044776,39143.0,39140.0,0.063904]
[1645917502658,0.00044776,39143.0,39139.0,0.00916749]
[1645917502853,0.00012156,39143.0,39139.0,0.07307249]
[1645917503253,0.00024685,39143.0,39139.0,0.07307249]
[1645917504056,0.00012156,39143.0,39139.0,0.00916749]
[1645917504458,0.00044852,39143.0,39139.0,0.00916749]
[1645917505390,0.00012156,39143.0,39139.0,0.13697749]
[1645917505591,0.00044852,39143.0,39139.0,0.07307249]
[1645917506491,0.00012156,39143.0,39140.0,0.12780508]
[1645917506696,0.00044852,39143.0,39140.0,0.19170908]
[1645917506892,0.00044852,39143.0,39140.0,0.127807]
[1645917507091,0.00044852,39143.0,39139.0,0.00916749]
[1645917507698,0.00012156,39143.0,39139.0,0.00916749]
[1645917507992,0.00024843,39143.0,39139.0,0.00916749]
[1645917508846,0.00012156,39143.0,39139.0,0.00916749]
[1645917509246,0.00044991,39143.0,39139.0,0.00916749]
[1645917509649,0.063909,39142.0,39139.0,0.00916749]
[1645917510350,0.06423735,39142.0,39139.0,0.00916749]
[1645917511450,0.063909,39142.0,39139.0,0.00916749]
[1645917511649,0.06424328,39142.0,39139.0,0.00916749]
[1645917512499,0.063909,39142.0,39139.0,0.00916749]
[1645917512901,0.06424274,39142.0,39139.0,0.00916749]
[1645917513697,0.063909,39142.0,39139.0,0.00916749]
[1645917514099,0.06424274,39142.0,39139.0,0.00916749]
[1645917514499,0.12815674,39142.0,39139.0,0.00916749]
[1645917514899,0.127823,39142.0,39139.0,0.00916749]
[1645917515300,0.12815635,39142.0,39139.0,0.00916749]
[1645917515700,0.19206994,39142.0,39139.0,0.00916749]
[1645917515899,0.063913,39141.0,39139.0,0.00916749]
[1645917516745,0.12782698,39141.0,39139.0,0.00916749]
[1645917517149,0.063913,39141.0,39139.0,0.00916749]
[1645917518549,0.063906,39142.0,39139.0,0.00916749]
[1645917518747,0.0642337,39142.0,39139.0,0.00916749]
[1645917518950,0.0592337,39142.0,39139.0,0.00916749]
[1645917519551,0.0003277,39142.0,39139.0,0.00916749]
[1645917519750,0.00012156,39143.0,39139.0,0.00916749]
[1645917520000,0.0003277,39142.0,39139.0,0.00916749]
[1645917520805,0.0642337,39142.0,39139.0,0.00916749]
[1645917521501,0.0003277,39142.0,39139.0,0.00916749]
[1645917522104,0.00012156,39143.0,39139.0,0.00916749]
[1645917522305,0.0003281,39142.0,39139.0,0.00916749]
[1645917522504,0.06390514,39146.0,39139.0,0.00916749]
[1645917523505,0.063905,39145.0,39139.0,0.07307049]
[1645917524151,0.063905,39145.0,39139.0,0.13697349]
[1645917524851,0.063905,39145.0,39139.0,0.00916749]
[1645917525651,0.363905,39145.0,39139.0,0.00916749]
[1645917526054,0.06405557,39144.0,39139.0,0.00916749]
[1645917526252,0.12796457,39144.0,39139.0,0.00916749]
[1645917526752,0.06405666,39144.0,39139.0,0.00916749]
[1645917526952,0.06391009,39144.0,39139.0,0.00916749]
[1645917527155,0.06425927,39144.0,39139.0,0.00916749]
[1645917527355,0.12816827,39144.0,39139.0,0.00916749]
[1645917527597,0.063908,39142.0,39139.0,0.00916749]
[1645917528097,0.06390459,39146.0,39139.0,0.00916749]
[1645917528497,0.00034917,39144.0,39139.0,0.00916749]
[1645917528700,0.06425517,39144.0,39139.0,0.00916749]
[1645917529298,0.063906,39144.0,39139.0,0.00916749]
[1645917529697,0.06425518,39144.0,39139.0,0.00916749]
[1645917530500,0.063906,39144.0,39139.0,0.00916749]
[1645917530900,0.06425518,39144.0,39139.0,0.00916749]
[1645917531349,0.12816318,39144.0,39139.0,0.00916749]
[1645917531746,0.127814,39144.0,39139.0,0.00916749]
[1645917531946,0.06425518,39144.0,39139.0,0.00916749]
[1645917532545,0.06391,39143.0,39139.0,0.00916749]
[1645917532947,0.063909,39142.0,39139.0,0.00916749]
[1645917535399,0.063903,39144.0,39139.0,0.07307049]
[1645917535595,0.06404932,39144.0,39139.0,0.07307049]
[1645917535994,0.06404932,39144.0,39139.0,0.00916749]
[1645917536600,0.063903,39144.0,39139.0,0.00916749]
[1645917536796,0.06404932,39144.0,39139.0,0.00916749]
[1645917537696,0.127811,39144.0,39139.0,0.00916749]
[1645917537896,0.12795732,39144.0,39139.0,0.00916749]
[1645917538096,0.06404932,39144.0,39139.0,0.00916749]
[1645917538496,0.00014632,39144.0,39139.0,0.00916749]
[1645917538957,0.42780816,39147.0,39139.0,0.00916749]
[1645917539161,0.00034889,39144.0,39139.0,0.00916749]
[1645917540162,0.42780816,39147.0,39139.0,0.00916749]
[1645917540360,0.00034889,39144.0,39139.0,0.2008747]
[1645917540961,0.00034889,39144.0,39139.0,0.13697349]
[1645917541460,0.063903,39146.0,39139.0,0.13697349]
[1645917541664,0.00034889,39144.0,39139.0,0.13697349]
[1645917541860,0.00034889,39144.0,39139.0,0.00916749]
[1645917542622,0.363904,39147.0,39139.0,0.00916749]
[1645917542821,0.00034889,39144.0,39139.0,0.00916749]
[1645917543718,0.063906,39146.0,39139.0,0.00916749]
[1645917543719,0.3,39145.0,39139.0,0.00916749]
[1645917543919,0.00034889,39144.0,39139.0,0.00916749]
[1645917544519,0.06425289,39144.0,39139.0,0.13697349]
[1645917544721,0.06425289,39144.0,39139.0,0.00916749]
[1645917544920,0.063904,39144.0,39139.0,0.00916749]
[1645917545120,0.06425289,39144.0,39139.0,0.00916749]
[1645917545724,0.3,39143.0,39139.0,0.00916749]
[1645917545929,0.06391,39142.0,39139.0,0.00916749]
[1645917546352,0.32549,39148.0,39139.0,0.00916749]
[1645917546353,0.3,39141.0,39139.0,0.00916749]
[1645917546562,0.0513,39140.0,39139.0,0.00916749]
[1645917546756,0.42679,39140.0,39139.0,0.00916749]
[1645917547061,0.47679,39140.0,39139.0,0.00916749]
[1645917547253,0.587,39140.0,39139.0,0.00916749]
[1645917549657,0.79624597,39140.0,39139.0,0.00916749]
[1645917550103,0.9690186,39140.0,39139.0,0.00916749]
[1645917550304,1.7471186,39140.0,39139.0,0.00916749]
[1645917551706,0.9690186,39140.0,39139.0,0.00916749]
[1645917552806,0.9690186,39140.0,39139.0,0.14607049]
[1645917556761,2.23670942,39140.0,39139.0,0.14607049]
[1645917556959,3.47519343,39140.0,39139.0,1.049e-05]
[1645917557164,3.48158302,39140.0,39139.0,1.049e-05]
[1645917557366,3.59818302,39140.0,39139.0,1.049e-05]
[1645917557615,3.61057866,39140.0,39135.0,0.00034896]
[1645917557816,1.54459,39136.0,39135.0,0.00034896]
[1645917558115,1.87887263,39136.0,39119.0,0.01021]
[1645917558314,0.02549,39131.0,39119.0,0.01021]
[1645917558513,0.02549,39129.0,39119.0,0.01021]
[1645917558811,0.089434,39126.0,39119.0,0.01021]
[1645917559013,0.41524359,39125.0,39119.0,0.01021]
[1645917559212,0.47918759,39125.0,39119.0,0.01021]
[1645917559514,0.47918759,39125.0,39120.0,0.00034875]
[1645917560516,0.063944,39124.0,39119.0,0.01021]
[1645917560821,0.13321,39130.0,39125.0,0.52489162]
[1645917560822,0.123,39130.0,39125.0,0.52489162]
[1645917561018,0.3,39135.0,39125.0,0.52489162]
[1645917561253,0.1,39134.0,39125.0,0.52489162]
[1645917561453,0.15,39134.0,39125.0,0.52489162]
[1645917561654,0.12785912,39133.0,39125.0,0.52489162]
[1645917561854,0.42785912,39133.0,39125.0,0.52489162]
[1645917562054,0.42785912,39133.0,39128.0,0.00034871]
[1645917562254,0.12785912,39133.0,39128.0,0.00034871]
[1645917562755,0.113928,39132.0,39128.0,0.00034871]
[1645917562956,0.163928,39132.0,39125.0,0.52489162]
[1645917563155,0.163928,39132.0,39129.0,0.0003487]
[1645917564157,0.163928,39132.0,39125.0,0.52489162]
[1645917564355,0.163928,39132.0,39129.0,0.0003487]
[1645917566106,0.22786,39132.0,39129.0,0.0003487]
[1645917566505,0.22786,39132.0,39125.0,0.46989162]
[1645917566706,0.52786,39132.0,39129.0,0.0003487]
[1645917566908,0.22786,39132.0,39129.0,0.0003487]
[1645917567706,0.22786,39132.0,39125.0,0.46989162]
[1645917567908,0.163928,39132.0,39129.0,0.0003487]
[1645917568108,0.063928,39132.0,39129.0,0.0003487]
[1645917568310,0.063923,39134.0,39129.0,0.0003487]
[1645917568952,0.063923,39134.0,39125.0,0.46989162]
[1645917569155,0.063923,39134.0,39130.0,0.0003487]
[1645917570156,0.063923,39134.0,39125.0,0.46989162]
[1645917570353,0.06392965,39132.0,39130.0,0.0003487]
[1645917570556,0.19179065,39132.0,39130.0,0.0003487]
[1645917571454,0.19179065,39132.0,39125.0,0.46989162]
[1645917571756,0.19179065,39132.0,39129.0,0.0003487]
[1645917571956,0.063932,39131.0,39129.0,0.0003487]
[1645917572507,0.063932,39131.0,39125.0,0.46989162]
[1645917572908,0.063932,39130.0,39128.0,0.00034871]
[1645917573704,0.063932,39130.0,39125.0,0.46989162]
[1645917573905,0.063932,39130.0,39127.0,0.00034871]
[1645917574605,6.751e-05,39128.0,39127.0,0.00034871]
[1645917575006,6.751e-05,39128.0,39125.0,0.46989162]
[1645917575211,6.751e-05,39128.0,39126.0,0.00034872]
[1645917576263,6.751e-05,39128.0,39125.0,0.46989162]
[1645917576459,6.751e-05,39128.0,39125.0,0.47024034]
[1645917577458,6.751e-05,39128.0,39125.0,0.46989162]
[1645917577658,6.751e-05,39128.0,39125.0,0.46524034]
[1645917578559,6.751e-05,39128.0,39125.0,0.46489162]
[1645917579361,0.06399851,39128.0,39125.0,0.46489162]
[1645917580001,0.06399851,39128.0,39125.0,0.46524006]
[1645917580202,0.063931,39128.0,39125.0,0.46524006]
[1645917581003,0.063931,39128.0,39125.0,0.46489162]
[1645917581204,0.063931,39128.0,39125.0,0.46524006]
[1645917582205,0.063931,39128.0,39125.0,0.46489162]
[1645917582406,0.063931,39128.0,39125.0,0.46524006]
[1645917583406,0.063931,39128.0,39125.0,0.46489162]
[1645917583758,0.063928,39129.0,39125.0,0.46524006]
[1645917584560,0.063928,39129.0,39125.0,0.46489162]
[1645917584759,0.063928,39129.0,39125.0,0.46524006]
[1645917585859,0.063928,39129.0,39125.0,0.46489162]
[1645917586059,0.063928,39129.0,39125.0,0.46524006]
[1645917586971,0.01021,39133.0,39125.0,0.46524006]
[1645917586972,0.2194,39143.0,39126.0,0.3]
[1645917587168,1.1257,39142.0,39127.0,0.0513]
[1645917587365,0.17280627,39141.0,39128.0,0.742638]
[1645917587613,1.1257,39142.0,39131.0,0.063908]
[1645917587808,1.1257,39142.0,39132.0,0.3]
[1645917588014,1.1257,39142.0,39133.0,0.19171526]
[1645917588404,1.1257,39142.0,39135.0,0.00034839]
[1645917588606,1.0093596,39142.0,39135.0,0.00034839]
[1645917588803,1.0093596,39142.0,39135.0,0.06425539]
[1645917589003,1.0093596,39142.0,39135.0,0.00034839]
[1645917589404,1.1371806,39142.0,39131.0,0.0513]
[1645917589707,0.063907,39142.0,39135.0,0.00034839]
[1645917589903,0.06391323,39141.0,39135.0,0.00034839]
[1645917590103,2.42708054,39136.0,39135.0,0.00034839]
[1645917590709,0.063915,39137.0,39131.0,0.115215]
[1645917590905,0.063915,39137.0,39134.0,0.00034839]
[1645917591103,0.25565823,39141.0,39134.0,0.00034839]
[1645917591556,0.12783,39141.0,39134.0,0.00034839]
[1645917591757,0.12783,39141.0,39129.0,0.427826]
[1645917591758,0.063913,39138.0,39129.0,0.427826]
[1645917592156,0.063913,39138.0,39135.0,0.00034839]
[1645917593759,0.063913,39138.0,39132.0,0.12772509]
[1645917595209,0.063913,39138.0,39127.0,0.0523]
[1645917595407,0.063913,39138.0,39127.0,0.001]
[1645917595408,0.145543,39138.0,39127.0,0.001]
[1645917595602,0.209466,39138.0,39133.0,0.0003484]
[1645917595802,0.063925,39137.0,39133.0,0.0003484]
[1645917596005,0.063924,39136.0,39133.0,0.0003484]
[1645917596602,0.063924,39136.0,39126.0,0.440549]
[1645917596803,0.063924,39136.0,39133.0,0.0003484]
[1645917597203,0.06392377,39135.0,39133.0,0.0003484]
[1645917597601,0.063926,39134.0,39133.0,0.0003484]
[1645917597801,0.063926,39134.0,39126.0,0.376625]
[1645917598001,0.191776,39134.0,39132.0,0.0003484]
[1645917598605,0.25570114,39134.0,39132.0,0.0003484]
[1645917599151,0.25570114,39134.0,39127.0,0.001]
[1645917599355,0.063926,39133.0,39131.0,0.00034841]
[1645917599553,0.25570114,39134.0,39133.0,0.127852]
[1645917599554,0.12785,39134.0,39133.0,0.127852]
[1645917600059,0.17785,39134.0,39133.0,0.127852]
[1645917600254,0.26485,39134.0,39133.0,0.12659504]
[1645917600853,0.392713,39134.0,39133.0,0.12659504]
[1645917601256,0.56551215,39134.0,39133.0,0.12659504]
[1645917601456,0.392713,39134.0,39133.0,0.12659504]
[1645917602508,0.56551215,39134.0,39133.0,0.12659504]
[1645917604109,1.34361215,39134.0,39133.0,0.12659504]
[1645917604511,0.56551215,39134.0,39133.0,0.12659504]
[1645917605011,1.34361215,39134.0,39133.0,0.12659504]
[1645917607358,0.54002215,39134.0,39133.0,0.12659504]
[1645917607561,0.47609015,39134.0,39133.0,0.12659504]
[1645917607764,0.251991,39134.0,39133.0,0.12659504]
[1645917607961,0.201991,39134.0,39133.0,0.12659504]
[1645917608159,0.191781,39134.0,39133.0,0.12659504]
[1645917608362,0.127863,39136.0,39133.0,0.12659504]
[1645917608560,0.17314748,39140.0,39134.0,0.3]
[1645917608760,0.21250108,39144.0,39133.0,0.12659504]
[1645917608761,0.1793581,39144.0,39133.0,0.12659504]
[1645917609062,0.00034833,39140.0,39133.0,0.12694344]
[1645917609758,0.00034833,39140.0,39133.0,0.19085444]
[1645917609759,0.06426033,39140.0,39133.0,0.19085444]
[1645917610011,0.063912,39140.0,39133.0,0.12694344]
[1645917610205,0.06426034,39140.0,39133.0,0.12694344]
[1645917611008,0.063912,39140.0,39133.0,0.12659504]
[1645917611205,0.063912,39140.0,39133.0,0.12694344]
[1645917611406,0.06426034,39140.0,39133.0,0.12694344]
[1645917611909,0.00034834,39140.0,39134.0,0.063912]
[1645917612208,0.00034834,39140.0,39135.0,0.3]
[1645917612409,0.01021,39143.0,39133.0,0.12694344]
[1645917612608,0.00034834,39140.0,39133.0,0.12694344]
[1645917613410,0.01021,39143.0,39133.0,0.12659504]
[1645917613610,0.063912,39140.0,39133.0,0.12694344]
[1645917613870,0.063912,39140.0,39134.0,0.3]
[1645917613871,0.00034834,39140.0,39134.0,0.3]
[1645917614069,0.00034834,39140.0,39135.0,0.455508]
[1645917614276,0.00034834,39140.0,39136.0,0.678718]
[1645917614463,0.00034834,39140.0,39136.0,0.430018]
[1645917614661,0.1793581,39144.0,39136.0,0.430018]
[1645917614863,0.1793581,39144.0,39136.0,0.179096]
[1645917615061,0.00014685,39140.0,39137.0,0.378718]
[1645917615365,0.00014685,39140.0,39138.0,0.678718]
[1645917615564,0.00014685,39140.0,39136.0,0.479096]
[1645917615767,0.00014685,39140.0,39137.0,0.378718]
[1645917615964,0.01015574,39144.0,39139.0,0.378718]
[1645917616164,0.01015574,39144.0,39141.0,0.378718]
[1645917616365,0.01015574,39144.0,39142.0,0.3]
[1645917616564,0.01015574,39144.0,39143.0,0.378718]
[1645917616768,0.01015574,39144.0,39142.0,0.363897]
[1645917616965,0.00058727,39149.0,39142.0,0.363897]
[1645917617166,0.063897,39152.0,39142.0,0.363897]
[1645917617363,0.00014685,39145.0,39142.0,0.363897]
[1645917618207,0.063897,39152.0,39142.0,0.363897]
[1645917618610,0.00034858,39145.0,39142.0,0.363897]
[1645917619609,0.063897,39152.0,39142.0,0.363897]
[1645917619808,0.00034858,39145.0,39142.0,0.42779316]
[1645917620008,0.00034858,39145.0,39142.0,0.363897]
[1645917620425,0.00034858,39145.0,39140.0,0.063901]
[1645917620610,0.00034858,39145.0,39139.0,0.363902]
[1645917620611,0.00034858,39145.0,39138.0,0.1202]
[1645917620810,0.127807,39152.0,39138.0,0.1202]
[1645917620811,1.0098,39148.0,39138.0,0.1202]
[1645917621255,2.30260009,39142.0,39138.0,0.1202]
[1645917621455,2.30260009,39142.0,39138.0,0.063904]
[1645917622059,2.30260009,39142.0,39138.0,0.12780756]
[1645917622258,2.30294869,39142.0,39137.0,0.001]
[1645917622459,2.36686369,39142.0,39137.0,0.001]
[1645917622661,2.36686369,39142.0,39133.0,0.12794372]
[1645917623359,2.36651509,39142.0,39133.0,0.12794371]
[1645917623558,0.00034861,39140.0,39134.0,0.063911]
[1645917624359,0.13803282,39146.0,39134.0,0.063911]
[1645917624560,0.12782282,39146.0,39134.0,0.063911]
[1645917625000,0.00034861,39140.0,39134.0,0.063911]
[1645917625204,0.00034861,39140.0,39134.0,0.127821]
[1645917625600,0.20847952,39147.0,39134.0,0.127821]
[1645917625803,0.20847952,39147.0,39133.0,0.12659504]
[1645917625804,0.18298952,39147.0,39135.0,0.3]
[1645917626001,0.00034861,39140.0,39137.0,0.063906]
[1645917626403,0.00034861,39140.0,39137.0,0.127811]
[1645917626804,0.063907,39146.0,39137.0,0.127811]
[1645917627103,0.00034861,39140.0,39137.0,0.127811]
[1645917627803,0.05925561,39146.0,39138.0,0.378718]
[1645917628004,0.17277952,39147.0,39139.0,0.3]
[1645917628201,0.00014687,39140.0,39139.0,0.3]
[1645917628404,0.00014687,39140.0,39138.0,0.127807]
[1645917629353,0.17277792,39147.0,39138.0,0.063904]
[1645917629549,0.00013673,39142.0,39138.0,0.063904]
[1645917630351,0.17277792,39147.0,39137.0,0.06390387]
[1645917630751,0.00034017,39142.0,39137.0,0.06390387]
[1645917630953,0.00034017,39142.0,39136.0,0.06424723]
[1645917631151,1.98179962,39138.0,39136.0,0.06424723]
[1645917631351,1.40584126,39138.0,39137.0,0.378718]
[1645917631653,1.137617,39148.0,39137.0,0.12780871]
[1645917631852,0.00034016,39142.0,39137.0,0.12780871]
[1645917632806,0.063906,39145.0,39138.0,0.063904]
[1645917633005,0.00034017,39142.0,39138.0,0.0634544]
[1645917633703,0.00034017,39142.0,39138.0,0.1273584]
[1645917634004,0.063904,39146.0,39138.0,0.1273584]
[1645917634204,0.00032894,39142.0,39138.0,0.1273584]
[1645917635109,0.16810248,39147.0,39138.0,0.1273584]
[1645917635305,1.83280965,39139.0,39138.0,0.1273584]
[1645917635504,0.16810248,39147.0,39138.0,0.1273584]
[1645917635704,0.063906,39145.0,39138.0,0.063904]
[1645917635905,0.063906,39145.0,39137.0,0.063907]
[1645917636955,0.063906,39145.0,39137.0,0.19171773]
[1645917637157,0.3,39147.0,39137.0,0.063907]
[1645917637356,1.0098,39148.0,39137.0,0.063907]
[1645917637556,0.3,39147.0,39137.0,0.063907]
[1645917637761,1.0098,39148.0,39137.0,0.063907]
[1645917637960,0.00014619,39144.0,39137.0,0.063907]
[1645917638359,0.00014619,39144.0,39137.0,0.12781056]
[1645917638559,0.00014619,39144.0,39139.0,0.063902]
[1645917638760,1.0098,39148.0,39141.0,0.0639]
[1645917639160,0.00035012,39144.0,39138.0,0.00035018]
[1645917639370,0.00035012,39144.0,39139.0,0.378718]
[1645917639569,0.00035012,39144.0,39139.0,0.50651747]
[1645917639764,0.00035012,39144.0,39141.0,0.063897]
[1645917640024,0.1234,39151.0,39142.0,0.378718]
[1645917640222,0.00014608,39144.0,39138.0,0.02549]
[1645917640424,0.00014608,39144.0,39139.0,0.378718]
[1645917640822,0.00014608,39144.0,39142.0,0.06389617]
[1645917641023,0.00014608,39144.0,39143.0,0.378718]
[1645917641225,0.36389823,39152.0,39143.0,0.378718]
[1645917641423,0.36389823,39152.0,39142.0,0.12779517]
[1645917641424,0.00014608,39145.0,39142.0,0.12779517]
[1645917641623,0.00014608,39145.0,39143.0,0.378718]
[1645917641822,0.00014608,39145.0,39144.0,0.378718]
[1645917642023,0.00014608,39145.0,39142.0,0.12779517]
[1645917642223,0.00014608,39145.0,39143.0,0.378718]
[1645917642424,0.12779823,39152.0,39143.0,0.442615]
[1645917642624,0.00014608,39145.0,39143.0,0.127795]
[1645917642823,0.00014608,39145.0,39144.0,0.378718]
[1645917643625,0.02036574,39153.0,39146.0,0.063889]
[1645917643867,0.02176534,39153.0,39147.0,0.063889]
[1645917644068,0.01155534,39153.0,39147.0,0.063889]
[1645917644264,0.01155534,39153.0,39148.0,0.06388722]
[1645917644469,0.01155534,39153.0,39147.0,0.127769]
[1645917644866,0.01015574,39153.0,39148.0,0.063882]
[1645917645065,0.00034993,39152.0,39148.0,0.063882]
[1645917645468,0.00034993,39152.0,39149.0,0.12777044]
[1645917646169,0.01015574,39153.0,39149.0,0.12777044]
[1645917646369,0.00034993,39152.0,39149.0,0.06388444]
[1645917646568,0.00034993,39152.0,39150.0,0.378718]
[1645917646769,0.00034993,39152.0,39150.0,0.4425994]
[1645917647275,0.0011,39157.0,39150.0,0.5064814]
[1645917647512,0.31021,39162.0,39150.0,0.0638814]
[1645917647706,0.3,39162.0,39150.0,0.0638814]
[1645917648505,0.063881,39160.0,39150.0,0.1277594]
[1645917648703,0.063881,39160.0,39151.0,0.06388158]